bitfinex-derivatives/quotes_ETHF0:USTF0_20250224
["timestamp","ask_amount","ask_price","bid_price","bid_amount"]
[1740387669621,0.74424,2686.7,2686.6,0.9305]
[1740387669827,0.74423,2686.8,2686.6,1.67477]
[1740387670021,3.2078,2687.0,2686.6,0.9305]
[1740387670228,3.2078,2687.0,2686.9,0.74418]
[1740387672119,3.2078,2687.0,2686.8,0.7442]
[1740387672327,3.2078,2687.0,2686.9,0.74418]
[1740387673124,0.74421,2686.8,2686.7,0.74981774]
[1740387673317,0.7442,2686.9,2686.8,0.74419]
[1740387673522,3.2078,2687.0,2686.9,0.74418]
[1740387673726,0.74421,2686.9,2686.8,0.74419]
[1740387673925,3.95197,2687.0,2686.9,0.74418]
[1740387674229,3.2078,2687.0,2686.9,0.74418]
[1740387676130,5.91332026,2687.5,2687.4,0.74404]
[1740387676429,0.00452026,2687.5,2687.4,0.74404]
[1740387677119,3.21338774,2687.9,2687.8,0.74393]
[1740387677817,0.00558774,2687.9,2687.8,0.74393]
[1740387678822,3.2078,2688.6,2688.5,0.74374]
[1740387679626,3.95151,2688.6,2688.5,0.74374]
[1740387679826,0.74376,2688.5,2688.4,0.74375]
[1740387680028,3.2078,2688.6,2688.3,0.00558774]
[1740387680323,3.2078,2688.6,2688.5,0.74374]
[1740387680926,0.00558774,2688.8,2688.7,0.74369]
[1740387683032,3.2078,2689.2,2689.1,0.74357]
[1740387683231,0.74345,2689.6,2689.5,0.74344]
[1740387683539,0.74348,2689.5,2689.4,0.74348]
[1740387683732,3.7596,2689.7,2689.0,2.699]
[1740387683940,0.74353,2689.3,2689.2,0.74353]
[1740387684229,0.74359,2689.1,2689.0,0.74358]
[1740387684436,0.74356,2689.2,2689.1,0.74354]
[1740387685042,0.74359,2689.1,2689.0,0.74358]
[1740387685338,0.74359,2689.1,2688.6,6.02306]
[1740387685339,3.2078,2689.1,2688.6,6.02306]
[1740387685537,0.74363,2688.9,2688.8,0.74363]
[1740387685737,3.2078,2689.0,2688.9,0.74363]
[1740387685938,3.9514,2689.0,2688.9,0.74363]
[1740387687435,3.2078,2689.0,2688.9,0.74363]
[1740387688047,3.2078,2689.0,2688.8,0.74364]
[1740387688048,0.74365,2688.9,2688.8,0.74364]
[1740387688545,3.95142,2689.0,2688.9,0.74363]
[1740387688951,3.2078,2689.0,2688.6,3.6047]
[1740387689137,0.74366,2688.9,2688.8,0.74365]
[1740387690041,3.2078,2689.0,2688.6,5.0924]
[1740387690242,3.2078,2688.7,2688.6,5.0924]
[1740387690644,3.2078,2689.0,2688.6,5.0924]
[1740387690840,3.2078,2689.0,2688.6,4.5104]
[1740387691943,3.2078,2689.4,2688.6,10.4162]
[1740387694157,3.2078,2689.4,2688.6,11.346]
[1740387694446,3.2078,2689.4,2688.7,40.8]
[1740387694652,3.2517,2689.8,2689.1,3.2078]
[1740387694653,3.7615,2689.8,2689.1,3.2078]
[1740387694952,3.2078,2689.8,2689.2,1.1277]
[1740387695141,3.2078,2689.8,2689.2,6.78297]
[1740387695342,3.2078,2689.8,2689.4,0.74349]
[1740387696245,5.06628,2689.8,2689.2,1.7163]
[1740387696447,0.74351,2689.4,2689.3,0.74349]
[1740387697448,3.21141216,2689.5,2689.2,1.1277]
[1740387697449,3.21141216,2689.5,2689.2,0.5789]
[1740387697853,3.21141216,2689.5,2689.4,0.74349]
[1740387698349,0.74707216,2689.5,2689.4,0.74349]
[1740387698547,0.74352,2689.3,2689.2,1.32241]
[1740387699050,0.74351,2689.4,2689.3,0.74349]
[1740387699254,3.21141216,2689.5,2689.2,0.5789]
[1740387699552,0.74352,2689.3,2689.2,0.5789]
[1740387700251,0.74352,2689.3,2689.2,1.32245]
[1740387700552,0.7435,2689.4,2689.3,0.74349]
[1740387700850,0.74352,2689.3,2689.2,1.32244]
[1740387702152,3.21141216,2689.5,2689.2,0.5789]
[1740387704157,0.00361216,2689.5,2689.2,0.5789]
[1740387704854,0.00361216,2689.5,2689.2,0.8744]
[1740387705054,3.21141216,2689.5,2689.2,0.8744]
[1740387707056,3.21141216,2689.5,2689.2,0.2955]
[1740387707357,3.94685922,2689.5,2689.2,0.2955]
[1740387710448,3.21141216,2689.5,2689.2,0.2955]
[1740387711257,3.21141216,2689.5,2689.2,2.7125]
[1740387712653,3.74711216,2689.5,2689.2,2.7125]
[1740387713355,4.33461216,2689.5,2689.2,2.7125]
[1740387713561,5.07220615,2689.5,2689.2,2.7125]
[1740387713860,0.05964769,2689.4,2689.1,1.3905]
[1740387714053,3.2078,2689.2,2689.1,1.3905]
[1740387714250,6.64735,2689.2,2689.1,1.3905]
[1740387714456,12.64735,2689.2,2689.1,1.3905]
[1740387714659,6.64735,2689.2,2689.1,1.3905]
[1740387714848,7.38494399,2689.2,2689.1,1.3905]
[1740387715458,6.64139399,2689.2,2689.0,0.18601]
[1740387715758,1.48116399,2689.1,2689.0,0.18601]
[1740387718262,0.73759399,2689.1,2689.0,0.18601]
[1740387720165,5.9038,2689.2,2689.0,0.18601]
[1740387720968,0.05969629,2689.1,2688.7,2.3267]
[1740387721163,8.47086,2688.8,2688.7,0.6007]
[1740387721359,0.74377,2688.4,2688.3,0.00558774]
[1740387721559,3.2078,2688.7,2688.6,0.74371]
[1740387721857,0.74377,2688.4,2688.3,0.00558774]
[1740387722062,3.95157,2688.4,2688.3,0.00558774]
[1740387722260,6.64757,2688.4,2688.3,0.00558774]
[1740387722856,6.64757,2688.4,2688.0,0.4301]
[1740387723062,3.95165,2688.1,2688.0,0.4301]
[1740387723465,3.95165,2688.1,2688.0,0.32437755]
[1740387723770,3.95165,2688.1,2688.0,0.1382306]
[1740387723960,4.01133042,2688.1,2688.0,0.1382306]
[1740387724154,4.01133128,2688.1,2688.0,0.1382306]
[1740387724671,3.95165,2688.1,2688.0,0.1382306]
[1740387725068,3.2078,2688.1,2688.0,0.8821106]
[1740387725269,0.73560123,2688.2,2688.0,0.1382306]
[1740387725566,3.2078,2688.7,2688.2,1.8595]
[1740387725769,3.2078,2688.7,2688.6,0.74371]
[1740387726273,2.97427495,2689.1,2688.1,4.3525]
[1740387726472,0.74367,2688.8,2688.3,1.8595]
[1740387726665,0.74364,2688.9,2688.8,0.74366]
[1740387726967,0.74364,2688.9,2688.3,1.8595]
[1740387726968,5.9038,2689.1,2689.0,0.7436]
[1740387727169,5.9038,2689.1,2688.4,3.2078]
[1740387727469,0.7437,2688.7,2688.5,0.74373]
[1740387728068,3.2078,2688.8,2688.4,3.2078]
[1740387728265,0.74372,2688.6,2688.4,3.2078]
[1740387728463,3.2078,2688.8,2688.4,3.2078]
[1740387728659,0.7437,2688.7,2688.5,0.74372]
[1740387728867,3.2078,2688.8,2688.4,3.2078]
[1740387729165,0.74369,2688.7,2688.5,0.74373]
[1740387729470,3.2078,2689.1,2689.0,0.7436]
[1740387730173,3.95138,2689.1,2689.0,0.7436]
[1740387730369,0.74363,2688.9,2688.8,0.571]
[1740387730572,2.695,2689.0,2688.9,0.74363]
[1740387730871,3.43863,2689.0,2688.9,0.74363]
[1740387731067,2.695,2689.0,2688.9,0.74363]
[1740387731374,2.695,2689.0,2688.8,0.571]
[1740387731567,0.74363,2688.9,2688.8,1.31466]
[1740387731769,2.695,2689.0,2688.9,0.74363]
[1740387731968,3.2078,2689.1,2689.0,0.7436]
[1740387733571,0.7436,2689.0,2688.9,1.093]
[1740387733770,3.2078,2689.1,2689.0,0.7436]
[1740387735582,0.74710216,2689.5,2689.1,1.85891]
[1740387735767,0.00361216,2689.5,2689.4,0.74349]
[1740387735967,0.00361216,2689.5,2689.1,0.74357]
[1740387736286,3.2078,2689.4,2689.1,0.00557704]
[1740387736768,0.74355,2689.2,2689.1,0.00557704]
[1740387738180,3.41515737,2689.3,2689.1,0.00557704]
[1740387738877,2.695,2689.3,2689.1,0.00557704]
[1740387740575,3.41533846,2689.3,2689.1,0.00557704]
[1740387740775,0.72033846,2689.3,2689.1,0.00557704]
[1740387740975,0.72033846,2689.3,2689.1,0.54687704]
[1740387741177,3.92813846,2689.4,2689.1,0.54687704]
[1740387742876,3.92813846,2689.4,2689.1,2.03427704]
[1740387745082,3.92813846,2689.4,2689.1,1.49297704]
[1740387745283,0.05965595,2689.3,2689.0,0.9297]
[1740387745581,3.2078,2689.1,2689.0,0.9297]
[1740387745776,5.9018,2689.1,2689.0,0.9297]
[1740387746171,6.62213846,2689.1,2689.0,0.9297]
[1740387746377,6.68180818,2689.1,2689.0,0.9297]
[1740387746583,12.68181389,2689.1,2688.8,0.00557704]
[1740387746785,0.05967543,2689.0,2688.3,0.554]
[1740387747079,3.2078,2688.6,2688.3,0.554]
[1740387747679,3.92813846,2689.0,2688.3,0.554]
[1740387747878,0.72033846,2689.0,2688.6,3.2078]
[1740387748081,3.2078,2689.3,2688.7,0.5785]
[1740387748276,3.2078,2689.3,2688.8,0.5544]
[1740387748477,0.7436,2689.1,2688.9,0.5377]
[1740387748785,0.7436,2689.1,2689.0,0.7436]
[1740387749282,0.74357,2689.1,2689.0,0.7436]
[1740387749483,0.74356,2689.2,2689.1,0.74356]
[1740387749674,0.74356,2689.2,2689.0,0.74358]
[1740387749984,0.74356,2689.2,2689.1,0.74357]
[1740387750381,3.92779839,2689.3,2688.9,1.0921]
[1740387750578,0.74357,2689.2,2689.0,0.74358]
[1740387750778,3.92779839,2689.3,2689.0,0.74358]
[1740387751081,4.67133839,2689.3,2689.2,0.74355]
[1740387751282,3.2078,2689.3,2688.9,1.0921]
[1740387751981,3.92779839,2689.3,2688.9,1.0921]
[1740387752286,0.71999839,2689.3,2688.9,4.2999]
[1740387752685,0.00361216,2689.5,2688.9,4.2999]
[1740387754475,3.2078,2690.1,2689.4,3.2078]
[1740387754680,3.2078,2690.1,2689.5,1.124]
[1740387755780,3.21337704,2690.1,2689.5,1.12957704]
[1740387756484,3.2078,2689.8,2689.5,1.12957704]
[1740387757690,3.2078,2689.7,2689.5,0.00557704]
[1740387757985,5.9008,2689.7,2688.7,1.5119]
[1740387758186,3.2078,2689.1,2688.7,1.5119]
[1740387758481,2.693,2689.1,2689.0,0.7436]
[1740387758687,5.9008,2689.1,2688.7,1.5119]
[1740387758991,5.9008,2689.1,2689.0,0.7436]
[1740387760390,2.693,2689.1,2689.0,0.7436]
[1740387760587,2.693,2689.4,2689.3,0.74352]
[1740387760788,5.9008,2689.7,2689.6,0.74344]
[1740387761092,5.9008,2689.7,2689.4,1.1371]
[1740387761285,0.74346,2689.5,2689.4,1.88058]
[1740387761481,0.74346,2689.5,2689.4,1.30348]
[1740387761890,6.64422,2689.7,2689.6,0.74344]
[1740387762081,0.74344,2689.6,2689.4,1.30347]
[1740387762387,5.9008,2689.7,2689.4,0.56]
[1740387762589,5.9008,2689.7,2689.6,0.74344]
[1740387762886,3.9400903,2689.7,2689.4,0.56]
[1740387763093,0.7322903,2689.7,2689.6,3.95124]
[1740387763290,0.7322903,2689.7,2689.6,0.74344]
[1740387763485,0.7322903,2689.7,2689.6,3.95124]
[1740387763889,0.00557704,2690.1,2690.0,0.74333]
[1740387764694,0.00557704,2690.1,2690.0,1.30663]
[1740387764895,3.2078,2690.6,2690.5,0.74319]
[1740387765392,3.2078,2690.6,2690.0,0.5633]
[1740387765892,0.7432,2690.5,2690.0,0.5633]
[1740387766092,0.7432,2690.5,2690.4,0.74322]
[1740387766294,3.21337704,2690.6,2690.0,0.56887704]
[1740387766494,3.2078,2690.2,2690.0,0.56887704]
[1740387766792,3.2078,2690.2,2690.1,0.7433]
[1740387767094,0.7433,2690.1,2690.0,0.56887704]
[1740387767502,0.7433,2690.1,2690.0,1.31220704]
[1740387767690,0.7433,2690.1,2690.0,0.56887704]
[1740387768093,0.7433,2690.1,2690.0,0.00557704]
[1740387768390,0.74353,2689.3,2688.8,1.85915]
[1740387768586,3.2078,2689.6,2689.1,0.5823]
[1740387768788,0.7435,2689.4,2689.3,0.7435]
[1740387768994,0.74353,2689.3,2689.2,0.74354]
[1740387769193,0.74339,2689.8,2689.7,0.74339]
[1740387769392,3.95116,2689.9,2689.7,0.74339]
[1740387769594,0.74343,2689.7,2689.5,0.74346]
[1740387769998,0.74339,2689.8,2689.6,0.74342]
[1740387770301,3.2078,2689.9,2689.8,0.74338]
[1740387770903,3.2078,2690.0,2689.6,1.4872]
[1740387771095,0.74337,2689.9,2689.7,0.74341]
[1740387771400,0.74337,2689.9,2689.6,1.4872]
[1740387771602,0.74336,2689.9,2689.6,1.4872]
[1740387771898,3.2078,2690.0,2689.7,0.74339]
[1740387772101,0.74336,2689.9,2689.8,0.74337]
[1740387772402,0.74337,2689.9,2689.7,0.74338]
[1740387772699,3.2078,2690.0,2689.6,1.4872]
[1740387772897,3.95114,2690.0,2689.9,0.74335]
[1740387773097,3.2078,2690.0,2689.9,0.74335]
[1740387773297,1.2867,2690.2,2690.0,0.74331]
[1740387773498,0.74331,2690.1,2690.0,0.74332]
[1740387773700,0.5434,2690.2,2689.7,0.5736]
[1740387773899,3.2078,2690.0,2689.7,0.5736]
[1740387774102,3.2078,2690.0,2689.9,0.74335]
[1740387775392,3.95106,2690.3,2689.7,2.43208]
[1740387775600,0.74327,2690.2,2690.0,0.7433]
[1740387775903,0.74334,2690.0,2689.9,0.74334]
[1740387776201,0.74336,2689.9,2689.8,0.74337]
[1740387776507,3.95106,2690.3,2690.2,0.74327]
[1740387776804,3.2078,2690.3,2689.7,0.5736]
[1740387777000,3.2078,2690.3,2690.2,0.74327]
[1740387777210,3.2078,2690.3,2689.7,0.5736]
[1740387780904,3.2078,2690.3,2689.7,3.2646]
[1740387782213,3.2078,2690.3,2689.7,0.5736]
[1740387783024,3.2078,2690.3,2689.7,0.5972]
[1740387783324,3.2078,2690.0,2689.7,0.5972]
[1740387783922,1.25250868,2690.2,2689.7,0.5972]
[1740387783923,0.539,2690.1,2689.7,0.5972]
[1740387787021,3.2078,2690.0,2689.7,0.5972]
[1740387788815,0.71510868,2690.2,2689.7,0.5972]
[1740387789020,0.71510868,2690.2,2689.9,3.2078]
[1740387789314,6.47777704,2690.6,2689.9,3.2078]
[1740387789315,0.71510868,2690.5,2689.9,3.2078]
[1740387790123,0.71510868,2690.5,2690.0,0.5645]
[1740387790424,1.29508572,2690.6,2690.0,0.5645]
[1740387790622,1.29508572,2690.6,2690.1,0.5818]
[1740387790928,0.57997704,2690.6,2690.2,0.5604]
[1740387792527,0.57997704,2690.6,2690.1,0.1366]
[1740387794643,0.5527,2690.5,2690.1,0.1366]
[1740387794825,0.5863,2690.4,2690.1,0.1366]
[1740387795133,2.69,2690.3,2690.1,0.1366]
[1740387795328,5.8978,2690.3,2690.1,0.1366]
[1740387795927,0.71510868,2690.2,2690.1,0.1366]
[1740387797634,0.71510868,2690.2,2690.1,0.0412048]
[1740387798523,9.76190948,2690.2,2689.7,0.0236]
[1740387798724,3.2078,2689.8,2689.7,0.0236]
[1740387798919,5.8968,2689.8,2689.7,0.0236]
[1740387799127,5.8968,2689.8,2689.6,1.4872]
[1740387799628,0.71510868,2689.7,2689.6,1.4872]
[1740387800120,8.68e-06,2689.7,2689.6,5.43844]
[1740387800527,8.68e-06,2689.7,2689.6,11.43844]
[1740387800732,6.4767,2690.5,2690.4,0.74322]
[1740387800928,5.8968,2690.5,2690.4,0.74322]
[1740387802030,6.63999,2690.5,2690.3,0.74322]
[1740387802230,5.8968,2690.5,2690.2,0.5475]
[1740387802436,5.8968,2690.5,2690.4,0.74322]
[1740387802736,6.63999,2690.5,2690.4,0.74322]
[1740387803038,5.8968,2690.5,2690.4,0.74322]
[1740387804430,3.2078,2690.5,2690.4,0.74322]
[1740387805236,0.00557704,2690.6,2690.5,0.74319]
[1740387806434,0.00557704,2690.6,2690.5,3.95099]
[1740387806435,7.04e-06,2690.6,2690.5,3.95099]
[1740387809938,7.04e-06,2690.6,2690.5,12.63899]
[1740387810236,3.2078,2692.2,2692.1,0.74275]
[1740387810737,0.74281,2691.9,2691.8,0.7428]
[1740387810938,3.95054,2692.2,2691.7,1.85715]
[1740387811130,3.2078,2692.2,2691.7,1.85715]
[1740387811439,3.21337704,2692.2,2692.1,0.74275]
[1740387812232,0.00557704,2692.2,2692.1,0.74275]
[1740387817040,0.74829704,2692.2,2692.1,0.74275]
[1740387817639,0.00557704,2692.2,2692.1,0.74275]
[1740387818938,3.2078,2692.4,2692.3,0.74269]
[1740387819146,3.2078,2692.4,2692.2,0.5429]
[1740387819438,3.2078,2692.4,2691.9,2.686]
[1740387820031,3.21337704,2692.4,2691.9,2.686]
[1740387821042,0.1914,2692.3,2691.9,2.686]
[1740387822043,0.1914,2692.3,2692.0,3.7531]
[1740387822448,0.1914,2692.3,2692.1,0.5568]
[1740387822941,0.1914,2692.3,2692.2,0.5632]
[1740387824843,0.0174,2692.5,2692.2,6.5632]
[1740387825044,3.2078,2693.6,2692.3,5.8928]
[1740387825243,3.2078,2693.9,2693.8,0.74228]
[1740387825436,0.74232,2693.7,2693.3,2.40973]
[1740387825638,3.2078,2693.9,2693.3,0.5537]
[1740387825948,3.2078,2693.6,2693.3,0.5537]
[1740387826151,0.74239,2693.4,2693.3,0.00557704]
[1740387827054,0.74239,2693.4,2693.3,0.74799704]
[1740387827254,1.1678,2693.5,2693.3,0.00557704]
[1740387827455,0.74239,2693.4,2693.3,0.00557704]
[1740387827952,3.21337704,2693.9,2693.5,1.85591]
[1740387828154,0.00557704,2693.9,2693.8,0.74228]
[1740387829153,3.2078,2694.2,2693.8,0.74228]
[1740387829361,3.2078,2694.5,2693.8,3.2078]
[1740387829851,3.2078,2694.5,2694.4,0.74211]
[1740387830051,3.2078,2695.1,2694.2,2.684]
[1740387830246,3.7852,2695.5,2694.4,3.2078]
[1740387830456,0.74185,2695.4,2694.7,1.85505]
[1740387830647,0.74197,2695.0,2694.8,0.74199]
[1740387830853,3.2078,2695.1,2694.8,0.00556659]
[1740387831051,0.74196,2695.0,2694.8,0.00556659]
[1740387831256,3.2078,2695.1,2694.9,0.74196]
[1740387831449,3.94974,2695.1,2694.8,0.74755659]
[1740387831750,0.74197,2694.9,2694.8,0.00556659]
[1740387832455,0.74196,2695.0,2694.8,0.74756659]
[1740387832650,6.63374,2695.1,2694.9,0.74197]
[1740387832848,0.74196,2695.0,2694.8,0.74755659]
[1740387833052,0.74197,2694.9,2694.8,0.00556659]
[1740387833349,0.7421,2694.5,2694.3,0.74212]
[1740387833556,3.42509,2694.5,2693.7,5.06355]
[1740387833751,3.2078,2694.6,2694.5,0.74208]
[1740387833957,2.683,2694.7,2693.8,3.2714]
[1740387834154,2.683,2694.7,2694.1,1.85546]
[1740387834351,2.683,2694.7,2694.6,0.74206]
[1740387834549,0.00554246,2694.7,2694.6,0.74206]
[1740387834960,0.00554246,2694.7,2694.6,3.94986]
[1740387835157,0.00554246,2694.7,2694.6,0.74206]
[1740387836458,3.2078,2695.3,2695.2,0.74189]
[1740387836665,3.2078,2695.3,2694.7,1.85504]
[1740387836964,3.94968,2695.3,2695.2,0.74189]
[1740387837161,0.74194,2695.1,2694.7,1.85508]
[1740387837463,3.2078,2695.3,2694.6,3.2078]
[1740387837663,0.74201,2694.8,2694.7,0.74201]
[1740387838060,0.742,2694.8,2694.5,0.5884]
[1740387838362,0.74201,2694.8,2694.7,0.74203]
[1740387838561,3.2078,2695.1,2694.5,0.5884]
[1740387838861,0.5811,2695.0,2694.5,0.5884]
[1740387839059,3.94974,2695.1,2694.9,0.74197]
[1740387839267,3.2078,2695.1,2695.0,0.74195]
[1740387839763,3.2078,2695.1,2694.9,0.74196]
[1740387839964,3.94975,2695.1,2694.9,0.74196]
[1740387840166,0.74195,2695.0,2694.9,0.74196]
[1740387840357,3.2078,2695.1,2694.5,2.44359]
[1740387840358,3.2078,2695.1,2694.7,0.74201]
[1740387840555,0.74201,2694.8,2694.7,0.74202]
[1740387840759,0.74201,2694.8,2694.5,0.5884]
[1740387840967,0.74203,2694.7,2694.6,0.74205]
[1740387841162,0.74203,2694.7,2694.5,0.5884]
[1740387841163,0.74198,2694.9,2694.5,0.5884]
[1740387841366,0.74201,2694.8,2694.6,0.74204]
[1740387841663,0.74201,2694.8,2694.5,0.5884]
[1740387841664,3.2078,2695.1,2695.0,0.74195]
[1740387842063,2.25935,2695.1,2695.0,0.74195]
[1740387842254,0.1057,2695.4,2695.3,0.74186]
[1740387842454,0.1057,2695.4,2695.3,3.94966]
[1740387842863,0.1057,2695.4,2695.3,0.74186]
[1740387846763,0.74181,2695.5,2695.1,0.74192]
[1740387846965,0.7418,2695.6,2695.5,0.74178]
[1740387847468,3.2078,2695.7,2695.1,0.74192]
[1740387847769,3.2078,2695.7,2695.0,0.5371]
[1740387847964,3.2078,2695.4,2695.0,0.5371]
[1740387848271,3.2078,2695.4,2695.3,0.74186]
[1740387849065,0.7418,2695.6,2695.1,1.85481]
[1740387849265,3.2078,2695.7,2695.2,1.85472]
[1740387849567,3.2078,2695.7,2695.0,0.5371]
[1740387849768,1.85446,2695.6,2695.0,0.5371]
[1740387849967,0.74188,2695.3,2695.2,0.74188]
[1740387850169,0.5371,2695.5,2695.0,2.0213]
[1740387850373,3.2078,2695.4,2695.0,2.0213]
[1740387851171,0.5371,2695.5,2695.0,2.0213]
[1740387853365,0.5805,2695.4,2695.0,2.0213]
[1740387854864,3.2078,2695.2,2695.0,2.0213]
[1740387855070,5.8878,2695.2,2695.0,1.4842]
[1740387855271,0.62842172,2695.1,2694.2,0.5841]
[1740387855576,3.2078,2694.7,2694.2,0.5841]
[1740387855772,3.2652,2694.6,2694.2,0.5841]
[1740387856281,0.74214,2694.3,2694.2,0.5841]
[1740387856767,0.74217,2694.2,2694.1,0.00556659]
[1740387858374,3.2078,2694.4,2694.1,0.00556659]
[1740387858675,0.5852,2694.6,2694.5,0.74208]
[1740387858872,0.5852,2694.6,2694.2,1.148]
[1740387859273,0.5852,2694.6,2694.4,0.74211]
[1740387859480,0.5852,2694.6,2694.5,0.74208]
[1740387859776,6.62986,2694.7,2694.2,1.148]
[1740387859777,5.8878,2694.7,2694.2,1.148]
[1740387859977,0.74209,2694.5,2694.4,0.7421]
[1740387860274,5.8878,2694.7,2694.2,1.148]
[1740387860482,7.7429,2694.7,2694.1,0.00556659]
[1740387860679,0.74217,2694.2,2694.1,0.00556659]
[1740387861371,0.5684,2694.3,2694.1,0.00556659]
[1740387861577,0.74209,2694.5,2694.1,0.00556659]
[1740387861776,3.2078,2694.7,2694.6,0.74206]
[1740387861978,3.2078,2694.7,2694.2,0.5393]
[1740387862178,0.74207,2694.6,2694.5,0.74208]
[1740387862480,0.74206,2694.6,2694.5,0.74208]
[1740387862675,3.2078,2694.7,2694.3,1.85536]
[1740387862886,0.74207,2694.6,2694.5,0.74207]
[1740387863076,0.74206,2694.6,2694.5,0.74207]
[1740387863280,3.2078,2694.7,2694.4,0.5429]
[1740387863476,0.74207,2694.6,2694.5,0.74206]
[1740387863679,0.74208,2694.5,2694.4,0.5429]
[1740387864277,3.2078,2694.7,2694.4,0.5429]
[1740387864780,3.2078,2694.7,2694.1,0.00556659]
[1740387864982,3.2078,2694.4,2694.1,0.00556659]
[1740387865174,0.5483,2694.3,2694.1,0.00556659]
[1740387866472,3.2078,2694.4,2694.1,0.00556659]
[1740387867078,0.1058,2694.3,2694.1,0.00556659]
[1740387868082,0.5354,2694.2,2694.1,0.00556659]
[1740387868686,9.5224,2694.2,2694.1,6.59e-06]
[1740387868985,9.58232239,2694.2,2694.1,6.59e-06]
[1740387870283,10.26457,2694.2,2694.1,6.59e-06]
[1740387870479,10.32449301,2694.2,2694.1,6.59e-06]
[1740387870986,0.74239,2693.4,2693.3,0.5327]
[1740387871285,0.74247,2693.1,2693.0,1.1513]
[1740387871483,0.5702,2693.3,2692.7,0.5327]
[1740387871684,2.68,2693.2,2693.1,0.74246]
[1740387871985,0.74252,2693.0,2692.9,0.00556659]
[1740387872987,6.63026,2693.2,2692.9,0.00556659]
[1740387873182,5.8878,2693.2,2692.9,0.00556659]
[1740387873386,0.74249,2693.1,2693.0,0.74249]
[1740387873585,5.8878,2693.2,2692.9,0.00556659]
[1740387873884,5.8878,2693.2,2693.1,0.74247]
[1740387874090,2.68,2693.4,2693.3,0.74242]
[1740387874287,5.8878,2693.5,2693.2,0.5566]
[1740387874483,0.74242,2693.3,2693.2,0.5566]
[1740387875392,8.29916,2693.5,2692.9,0.00556659]
[1740387875595,0.7425,2693.0,2692.9,0.74807659]
[1740387875793,0.7425,2693.0,2692.9,0.00556659]
[1740387876291,3.2078,2693.2,2692.9,0.00556659]
[1740387876691,2.68,2693.1,2692.9,0.00556659]
[1740387877486,0.5353,2693.0,2692.2,3.2078]
[1740387877693,3.2078,2692.8,2692.3,1.658]
[1740387878183,5.667,2693.1,2692.5,3.2078]
[1740387878388,5.667,2693.1,2693.0,0.7425]
[1740387878590,2.68,2693.1,2692.5,3.2078]
[1740387878790,0.74253,2692.9,2692.8,0.00556659]
[1740387878989,3.95033,2692.9,2692.8,0.00556659]
[1740387881905,0.74266,2692.4,2692.3,0.5637]
[1740387882101,3.95046,2692.4,2692.3,0.5637]
[1740387882700,3.2078,2692.4,2691.9,1.1071]
[1740387882901,0.74276,2692.1,2692.0,0.5783]
[1740387883293,3.2078,2692.4,2692.0,1.32107]
[1740387883494,0.74272,2692.2,2692.0,1.32105]
[1740387883702,0.74272,2692.2,2692.1,0.74275]
[1740387883995,3.2078,2692.4,2692.0,1.32106]
[1740387884300,0.74273,2692.2,2692.1,0.74275]
[1740387884505,0.74273,2692.2,2692.0,1.32105]
[1740387884821,3.2078,2692.4,2692.0,0.5783]
[1740387885000,3.2078,2692.4,2692.2,0.74271]
[1740387885204,3.95048,2692.4,2692.0,0.5783]
[1740387885403,3.95048,2692.4,2692.2,0.74269]
[1740387885598,3.95048,2692.4,2692.0,0.5783]
[1740387885901,3.2078,2692.4,2692.3,0.74269]
[1740387886101,3.2078,2692.4,2692.0,0.5783]
[1740387888000,3.2078,2692.1,2692.0,0.5783]
[1740387888207,5.8878,2692.1,2692.0,0.5783]
[1740387891515,3.2078,2692.4,2692.0,0.5783]
[1740387891713,3.2078,2692.7,2692.0,0.5783]
[1740387891915,3.765,2693.2,2692.2,3.2078]
[1740387892114,3.42251,2693.0,2692.3,1.85673]
[1740387892419,3.42251,2693.0,2692.5,1.85657]
[1740387892710,2.68,2693.0,2692.6,0.5773]
[1740387892919,0.74258,2692.7,2692.6,1.31991]
[1740387893615,3.2078,2692.9,2692.7,0.74257]
[1740387893817,0.74255,2692.8,2692.7,0.74257]
[1740387894118,0.74255,2692.8,2692.6,0.5773]
[1740387894318,0.74256,2692.8,2692.7,0.74257]
[1740387894620,5.8878,2692.9,2692.7,0.74258]
[1740387895021,5.8878,2692.9,2692.6,0.5773]
[1740387895319,0.74258,2692.7,2692.6,0.5773]
[1740387897116,5.8878,2692.9,2692.6,0.5773]
[1740387897927,5.8878,2692.9,2692.2,3.2078]
[1740387898125,2.68,2692.9,2692.3,0.5343]
[1740387898420,3.2078,2692.4,2692.3,0.5343]
[1740387902118,3.2078,2693.0,2692.3,0.5343]
[1740387902422,2.68,2692.9,2692.3,3.7421]
[1740387903118,3.2078,2693.0,2692.3,3.7421]
[1740387903622,3.2078,2693.0,2692.3,0.5343]
[1740387904717,3.2078,2693.0,2692.3,3.7421]
[1740387904919,5.8878,2693.0,2692.3,3.7421]
[1740387905723,3.2078,2693.0,2692.3,3.7421]
[1740387905919,3.2362,2693.2,2692.3,0.5343]
[1740387906224,3.2078,2692.9,2692.3,0.5343]
[1740387906616,2.679,2692.8,2692.3,0.5343]
[1740387906817,3.2078,2692.6,2691.9,0.00556659]
[1740387907022,3.2078,2692.3,2691.9,0.00556659]
[1740387907325,2.679,2692.2,2692.1,0.74275]
[1740387907821,3.42173,2692.2,2692.0,1.86576]
[1740387908025,0.74275,2692.1,2692.0,1.86576]
[1740387908327,0.74277,2692.0,2691.9,0.00556659]
[1740387908514,4.50417,2692.0,2691.9,0.00556659]
[1740387908928,4.50417,2692.0,2691.9,0.74836659]
[1740387909122,4.50417,2692.0,2691.9,0.00556659]
[1740387911227,3.7614,2692.0,2691.9,0.00556659]
[1740387911529,3.7614,2692.0,2691.9,0.74836659]